[Event "*** Titled Tuesday Blitz"]
[Site "Chess.com"]
[Date "2020.11.10"]
[Round "9"]
[White "Mikhail_Golubev"]
[Black "sjam6687"]
[Result "0-1"]
[WhiteElo "2588"]
[BlackElo "2726"]
[TimeControl "180+1"]
[EndTime "11:52:29 PST"]
[Termination "sjam6687 won on time"]

1. e4 {[%clk 0:03:00.9]} 1... e5 {[%clk 0:02:59.1]} 2. Nf3 {[%clk 0:03:00.3]}
2... Nc6 {[%clk 0:02:59.2]} 3. Bb5 {[%clk 0:02:59.7]} 3... a6 {[%clk 0:02:58]}
4. Ba4 {[%clk 0:02:58]} 4... Nf6 {[%clk 0:02:55.5]} 5. O-O {[%clk 0:02:57.3]}
5... Be7 {[%clk 0:02:55.9]} 6. d3 {[%clk 0:02:55.8]} 6... d6 {[%clk 0:02:54.4]}
7. c3 {[%clk 0:02:52.3]} 7... O-O {[%clk 0:02:54.5]} 8. Nbd2 {[%clk 0:02:46.5]}
8... b5 {[%clk 0:02:54.6]} 9. Bc2 {[%clk 0:02:45.6]} 9... Bb7 {[%clk 0:02:54.3]}
10. Re1 {[%clk 0:02:42.9]} 10... d5 {[%clk 0:02:52.5]} 11. Qe2 {[%clk
0:02:34.1]} 11... d4 {[%clk 0:02:48.8]} 12. cxd4 {[%clk 0:02:32.3]} 12... Nxd4
{[%clk 0:02:47.1]} 13. Nxd4 {[%clk 0:02:31.7]} 13... exd4 {[%clk 0:02:44.4]} 14.
Nf3 {[%clk 0:02:07.1]} 14... c5 {[%clk 0:02:41.2]} 15. b4 {[%clk 0:02:00]} 15...
Rc8 {[%clk 0:02:37.1]} 16. Bb2 {[%clk 0:01:54.6]} 16... Qb6 {[%clk 0:02:28.2]}
17. bxc5 {[%clk 0:01:45.3]} 17... Bxc5 {[%clk 0:02:26.4]} 18. Bb3 {[%clk
0:01:38.7]} 18... Rfe8 {[%clk 0:02:22.3]} 19. Ng5 {[%clk 0:01:20.9]} 19... Rc7
{[%clk 0:02:18.4]} 20. e5 {[%clk 0:01:18.8]} 20... Nd5 {[%clk 0:02:10.8]} 21.
Qe4 {[%clk 0:01:09.5]} 21... Qg6 {[%clk 0:01:54.6]} 22. Bxd5 {[%clk 0:00:55.3]}
22... Bxd5 {[%clk 0:01:50.3]} 23. Qxd5 {[%clk 0:00:56.2]} 23... Qxg5 {[%clk
0:01:49]} 24. Rac1 {[%clk 0:00:48.9]} 24... Qe7 {[%clk 0:01:44.3]} 25. Bxd4
{[%clk 0:00:40.5]} 25... Bxd4 {[%clk 0:01:40.9]} 26. Qxd4 {[%clk 0:00:33.5]}
26... Rd7 {[%clk 0:01:36.3]} 27. Qe4 {[%clk 0:00:30.2]} 27... Red8 {[%clk
0:01:33.2]} 28. Qc6 {[%clk 0:00:22.6]} 28... Rxd3 {[%clk 0:01:31.1]} 29. Qxa6
{[%clk 0:00:21.8]} 29... b4 {[%clk 0:01:28.5]} 30. h3 {[%clk 0:00:16.6]} 30...
h6 {[%clk 0:01:26]} 31. Rc8 {[%clk 0:00:13.2]} 31... Qe6 {[%clk 0:01:22.1]} 32.
Qxd3 {[%clk 0:00:08.8]} 32... Rxc8 {[%clk 0:01:18.6]} 33. Qd6 {[%clk 0:00:07.7]}
33... Qxa2 {[%clk 0:01:16.2]} 34. Qxb4 {[%clk 0:00:07]} 34... Rc2 {[%clk
0:01:15.8]} 35. Qf4 {[%clk 0:00:06.6]} 35... g5 {[%clk 0:01:12.7]} 36. Qf6
{[%clk 0:00:05.2]} 36... Qe6 {[%clk 0:01:10.6]} 37. Qxe6 {[%clk 0:00:05]} 37...
fxe6 {[%clk 0:01:11.4]} 38. g3 {[%clk 0:00:04.8]} 38... Kg7 {[%clk 0:01:09.3]}
39. Kg2 {[%clk 0:00:05.2]} 39... h5 {[%clk 0:01:07.9]} 40. Kf3 {[%clk
0:00:04.9]} 40... Kg6 {[%clk 0:01:08.1]} 41. Re3 {[%clk 0:00:05.1]} 41... Rc5
{[%clk 0:01:03.8]} 42. Re4 {[%clk 0:00:04.3]} 42... Ra5 {[%clk 0:01:00.9]} 43.
Re3 {[%clk 0:00:04.3]} 43... Rb5 {[%clk 0:00:59.3]} 44. Re4 {[%clk 0:00:04.4]}
44... Rd5 {[%clk 0:00:56.4]} 45. Re3 {[%clk 0:00:04.8]} 45... Kf5 {[%clk
0:00:54]} 46. g4+ {[%clk 0:00:04.3]} 46... Kg6 {[%clk 0:00:54]} 47. gxh5+ {[%clk
0:00:03.7]} 47... Kxh5 {[%clk 0:00:53]} 48. Kg3 {[%clk 0:00:04.6]} 48... Rb5
{[%clk 0:00:50.5]} 49. Re2 {[%clk 0:00:03.8]} 49... Rb1 {[%clk 0:00:48.7]} 50.
Rd2 {[%clk 0:00:03.6]} 50... Rb3+ {[%clk 0:00:47.1]} 51. f3 {[%clk 0:00:02.9]}
51... Kg6 {[%clk 0:00:47]} 52. Rd8 {[%clk 0:00:01.4]} 52... Rb5 {[%clk
0:00:44.7]} 0-1

[Event "*** Titled Tuesday Blitz"]
[Site "Chess.com"]
[Date "2020.11.10"]
[Round "9"]
[White "MokshanovAlexey"]
[Black "Ural_bogatyr"]
[Result "1-0"]
[WhiteElo "2623"]
[BlackElo "2409"]
[TimeControl "180+1"]
[EndTime "11:52:29 PST"]
[Termination "MokshanovAlexey won on time"]

1. e4 {[%clk 0:03:00.6]} 1... e5 {[%clk 0:02:55.2]} 2. Nf3 {[%clk 0:02:59]} 2...
Nc6 {[%clk 0:02:55.1]} 3. d4 {[%clk 0:02:58.9]} 3... exd4 {[%clk 0:02:54.7]} 4.
Nxd4 {[%clk 0:02:59.8]} 4... Qf6 {[%clk 0:02:53]} 5. Nxc6 {[%clk 0:02:59]} 5...
Bc5 {[%clk 0:02:53.5]} 6. Qf3 {[%clk 0:02:59.1]} 6... dxc6 {[%clk 0:02:52.6]} 7.
Bc4 {[%clk 0:02:58.7]} 7... Be6 {[%clk 0:02:46.4]} 8. Qxf6 {[%clk 0:02:58.5]}
8... Nxf6 {[%clk 0:02:46.5]} 9. Bxe6 {[%clk 0:02:58.9]} 9... fxe6 {[%clk
0:02:47.4]} 10. f3 {[%clk 0:02:59.6]} 10... h6 {[%clk 0:02:39.5]} 11. Nd2 {[%clk
0:02:53.1]} 11... Ke7 {[%clk 0:02:36.3]} 12. Nb3 {[%clk 0:02:52.4]} 12... Bb6
{[%clk 0:02:35.7]} 13. c4 {[%clk 0:02:47.6]} 13... a5 {[%clk 0:02:27.1]} 14. a4
{[%clk 0:02:43.7]} 14... Nd7 {[%clk 0:02:25]} 15. Ke2 {[%clk 0:02:41.4]} 15...
Nc5 {[%clk 0:02:17.4]} 16. Nxc5 {[%clk 0:02:41.2]} 16... Bxc5 {[%clk 0:02:16]}
17. Be3 {[%clk 0:02:41.8]} 17... Bb4 {[%clk 0:01:50.1]} 18. Rhd1 {[%clk
0:02:38.4]} 18... Rad8 {[%clk 0:01:49.1]} 19. Rxd8 {[%clk 0:02:25.9]} 19... Rxd8
{[%clk 0:01:50]} 20. Rd1 {[%clk 0:02:26.4]} 20... Rb8 {[%clk 0:01:33.8]} 21. Ba7
{[%clk 0:02:24.5]} 21... Ra8 {[%clk 0:01:33.4]} 22. Bd4 {[%clk 0:02:25]} 22...
g5 {[%clk 0:01:10.2]} 23. h4 {[%clk 0:02:23.6]} 23... gxh4 {[%clk 0:00:40.2]}
24. Rh1 {[%clk 0:02:04.9]} 24... Rg8 {[%clk 0:00:40.6]} 25. Kf2 {[%clk
0:02:01.1]} 25... Rg6 {[%clk 0:00:35.8]} 26. Rxh4 {[%clk 0:01:58.9]} 26... Bd2
{[%clk 0:00:33.5]} 27. Be5 {[%clk 0:01:45]} 27... Bg5 {[%clk 0:00:33.4]} 28. Rh1
{[%clk 0:01:44.4]} 28... Bf6 {[%clk 0:00:31]} 29. Bxf6+ {[%clk 0:01:41.7]} 29...
Kxf6 {[%clk 0:00:21.4]} 30. g4 {[%clk 0:01:40.6]} 30... e5 {[%clk 0:00:18.6]}
31. Rh5 {[%clk 0:01:36]} 31... Ke6 {[%clk 0:00:16.1]} 32. Ke3 {[%clk 0:01:36.2]}
32... Rf6 {[%clk 0:00:14.4]} 33. b3 {[%clk 0:01:36.2]} 33... b6 {[%clk
0:00:11.2]} 34. Rf5 {[%clk 0:01:33.3]} 34... Rg6 {[%clk 0:00:05.5]} 35. Kf2
{[%clk 0:01:32.9]} 35... Rg7 {[%clk 0:00:05.4]} 36. Kg3 {[%clk 0:01:32.2]} 36...
Rd7 {[%clk 0:00:05.1]} 37. Rh5 {[%clk 0:01:31.3]} 37... Rd3 {[%clk 0:00:05.7]}
38. Rxh6+ {[%clk 0:01:31.4]} 38... Kd7 {[%clk 0:00:06.4]} 39. g5 {[%clk
0:01:28.3]} 39... Rxb3 {[%clk 0:00:06.5]} 40. Rh7+ {[%clk 0:01:09.8]} 40... Ke6
{[%clk 0:00:06.2]} 41. Rxc7 {[%clk 0:01:09.8]} 41... Kd6 {[%clk 0:00:04.1]} 42.
g6 {[%clk 0:01:03.6]} 42... Kxc7 {[%clk 0:00:02.8]} 43. g7 {[%clk 0:01:03.4]}
43... Rb1 {[%clk 0:00:03.7]} 44. Kh2 {[%clk 0:01:03.3]} 44... Rb2+ {[%clk
0:00:03.8]} 45. Kh3 {[%clk 0:01:03.6]} 45... Rf2 {[%clk 0:00:03]} 46. g8=Q
{[%clk 0:01:02.4]} 46... Rxf3+ {[%clk 0:00:03.9]} 47. Kg2 {[%clk 0:01:02.2]}
47... Rf4 {[%clk 0:00:04.7]} 48. Qg6 {[%clk 0:00:38.8]} 48... Kd7 {[%clk
0:00:01.7]} 49. Kg3 {[%clk 0:00:30.9]} 49... Kc7 {[%clk 0:00:01.6]} 50. Qe6
{[%clk 0:00:30.6]} 1-0

[Event "*** Titled Tuesday Blitz"]
[Site "Chess.com"]
[Date "2020.11.10"]
[Round "9"]
[White "rugbyclub"]
[Black "JiiHart"]
[Result "0-1"]
[WhiteElo "2189"]
[BlackElo "2086"]
[TimeControl "180+1"]
[EndTime "11:52:29 PST"]
[Termination "JiiHart won by resignation"]

1. d4 {[%clk 0:02:11.6]} 1... Nf6 {[%clk 0:02:59.1]} 2. Nf3 {[%clk 0:02:10.8]}
2... e6 {[%clk 0:02:59.1]} 3. Bg5 {[%clk 0:02:10.4]} 3... c5 {[%clk 0:02:57.5]}
4. c3 {[%clk 0:02:09.5]} 4... Qb6 {[%clk 0:02:53.1]} 5. Na3 {[%clk 0:02:07]}
5... Qxb2 {[%clk 0:02:26.8]} 6. Nb5 {[%clk 0:02:06.4]} 6... Qxb5 {[%clk
0:02:23.2]} 7. Bxf6 {[%clk 0:02:04]} 7... gxf6 {[%clk 0:02:21.1]} 8. e4 {[%clk
0:02:04.6]} 8... Qa5 {[%clk 0:02:19.5]} 9. Qd2 {[%clk 0:01:59.6]} 9... cxd4
{[%clk 0:02:11.2]} 10. Nxd4 {[%clk 0:01:59.3]} 10... Nc6 {[%clk 0:02:06.8]} 11.
Be2 {[%clk 0:01:58.6]} 11... Nxd4 {[%clk 0:02:03.5]} 12. Qxd4 {[%clk 0:01:59.3]}
12... Qe5 {[%clk 0:01:57]} 13. Qd2 {[%clk 0:01:58.8]} 13... b6 {[%clk
0:01:40.7]} 14. O-O {[%clk 0:01:56.8]} 14... Bb7 {[%clk 0:01:37.4]} 15. f4
{[%clk 0:01:56.1]} 15... Qc5+ {[%clk 0:01:32.6]} 16. Kh1 {[%clk 0:01:56.3]}
16... Bxe4 {[%clk 0:01:32.3]} 17. Rad1 {[%clk 0:01:56.4]} 17... Qc6 {[%clk
0:01:19.7]} 18. Bf3 {[%clk 0:01:53.2]} 18... Bxf3 {[%clk 0:01:14.8]} 19. Rxf3
{[%clk 0:01:52.5]} 19... f5 {[%clk 0:00:55.1]} 20. Qd4 {[%clk 0:01:39.1]} 20...
Rg8 {[%clk 0:00:51.1]} 21. Rd2 {[%clk 0:01:39.5]} 21... Bg7 {[%clk 0:00:43.1]}
22. Qd3 {[%clk 0:01:32.5]} 22... Rc8 {[%clk 0:00:40.9]} 23. c4 {[%clk
0:01:30.5]} 23... Bf6 {[%clk 0:00:34.2]} 24. Rh3 {[%clk 0:01:09.4]} 24... Rc7
{[%clk 0:00:28.1]} 25. Rc2 {[%clk 0:01:00.7]} 25... d5 {[%clk 0:00:22.1]} 26.
Rxh7 {[%clk 0:00:50.2]} 26... dxc4 {[%clk 0:00:21.8]} 27. Qe2 {[%clk 0:00:47.5]}
27... Qe4 {[%clk 0:00:20.9]} 28. Qxe4 {[%clk 0:00:27.7]} 28... fxe4 {[%clk
0:00:21.8]} 29. Kg1 {[%clk 0:00:27.2]} 29... c3 {[%clk 0:00:21.5]} 30. Kf2
{[%clk 0:00:26.9]} 30... b5 {[%clk 0:00:21.9]} 31. Ke3 {[%clk 0:00:26.9]} 31...
b4 {[%clk 0:00:21.9]} 32. Kxe4 {[%clk 0:00:26.1]} 32... a5 {[%clk 0:00:22.5]}
33. Rh5 {[%clk 0:00:24.3]} 33... a4 {[%clk 0:00:21.6]} 34. Rb5 {[%clk
0:00:24.9]} 34... Rc4+ {[%clk 0:00:19.2]} 35. Kd3 {[%clk 0:00:24.1]} 35... Rd4+
{[%clk 0:00:18.7]} 36. Ke3 {[%clk 0:00:20.6]} 36... Kd7 {[%clk 0:00:18.1]} 37.
h3 {[%clk 0:00:16.6]} 37... Kc6 {[%clk 0:00:18.1]} 38. Ra5 {[%clk 0:00:13.8]}
38... Rgd8 {[%clk 0:00:18.1]} 39. g4 {[%clk 0:00:12.9]} 39... Rd3+ {[%clk
0:00:18]} 40. Ke2 {[%clk 0:00:13.3]} 40... Rd2+ {[%clk 0:00:16.7]} 41. Rxd2
{[%clk 0:00:14]} 41... Rxd2+ {[%clk 0:00:16.8]} 42. Ke1 {[%clk 0:00:14.7]} 42...
Rxa2 {[%clk 0:00:15.7]} 43. Ra6+ {[%clk 0:00:14]} 43... Kb5 {[%clk 0:00:15]} 44.
Ra8 {[%clk 0:00:14.8]} 44... Ra1+ {[%clk 0:00:14]} 45. Ke2 {[%clk 0:00:14.2]}
45... c2 {[%clk 0:00:14.3]} 46. Rc8 {[%clk 0:00:14]} 46... Bc3 {[%clk
0:00:14.3]} 0-1

[Event "*** Titled Tuesday Blitz"]
[Site "Chess.com"]
[Date "2020.11.10"]
[Round "9"]
[White "Vamostodorecto"]
[Black "szachuspl"]
[Result "0-1"]
[WhiteElo "2372"]
[BlackElo "2529"]
[TimeControl "180+1"]
[EndTime "11:52:30 PST"]
[Termination "szachuspl won by resignation"]

1. d4 {[%clk 0:03:00.9]} 1... Nf6 {[%clk 0:02:58.9]} 2. c4 {[%clk 0:03:01.8]}
2... g6 {[%clk 0:02:55.3]} 3. Nc3 {[%clk 0:03:02.1]} 3... Bg7 {[%clk 0:02:55.3]}
4. e4 {[%clk 0:03:01.3]} 4... d6 {[%clk 0:02:55.5]} 5. Be2 {[%clk 0:03:02.2]}
5... O-O {[%clk 0:02:54.9]} 6. Nf3 {[%clk 0:03:02.6]} 6... e5 {[%clk 0:02:54.2]}
7. O-O {[%clk 0:03:03.5]} 7... Na6 {[%clk 0:02:52.6]} 8. Be3 {[%clk 0:03:02.3]}
8... Ng4 {[%clk 0:02:51.6]} 9. Bg5 {[%clk 0:03:02.9]} 9... Qe8 {[%clk
0:02:51.5]} 10. c5 {[%clk 0:02:41.6]} 10... exd4 {[%clk 0:02:49.6]} 11. Nxd4
{[%clk 0:02:39.2]} 11... dxc5 {[%clk 0:02:45.3]} 12. Bxg4 {[%clk 0:02:00.6]}
12... Bxg4 {[%clk 0:02:31.8]} 13. Qxg4 {[%clk 0:01:59.4]} 13... Bxd4 {[%clk
0:02:30.8]} 14. Nd5 {[%clk 0:01:57.1]} 14... f6 {[%clk 0:02:31.1]} 15. Bh6
{[%clk 0:01:52.8]} 15... Rf7 {[%clk 0:02:31.4]} 16. Rfe1 {[%clk 0:01:40.1]}
16... c6 {[%clk 0:02:30.8]} 17. Nf4 {[%clk 0:01:38.7]} 17... Nc7 {[%clk
0:02:27.7]} 18. Rad1 {[%clk 0:01:20.5]} 18... Re7 {[%clk 0:02:27.3]} 19. Qf3
{[%clk 0:01:08.8]} 19... Rd8 {[%clk 0:02:26.4]} 20. h4 {[%clk 0:01:07]} 20...
Ne6 {[%clk 0:02:24.6]} 21. h5 {[%clk 0:00:57]} 21... g5 {[%clk 0:02:19.5]} 22.
Nd3 {[%clk 0:00:51.1]} 22... c4 {[%clk 0:02:08.1]} 23. Nb4 {[%clk 0:00:29.9]}
23... Nf4 {[%clk 0:02:02]} 24. Nc2 {[%clk 0:00:19]} 24... c5 {[%clk 0:01:51.7]}
25. Ne3 {[%clk 0:00:19]} 25... Qxh5 {[%clk 0:01:48.8]} 26. Qxh5 {[%clk
0:00:18.9]} 26... Nxh5 {[%clk 0:01:49.3]} 27. Nxc4 {[%clk 0:00:16.5]} 27... Red7
{[%clk 0:01:49.2]} 28. Kf1 {[%clk 0:00:14.9]} 28... Nf4 {[%clk 0:01:48.2]} 29.
g3 {[%clk 0:00:13.9]} 29... Ng6 {[%clk 0:01:48.5]} 30. f4 {[%clk 0:00:12.1]}
30... g4 {[%clk 0:01:44.1]} 31. e5 {[%clk 0:00:10.4]} 31... b5 {[%clk
0:01:40.2]} 32. Nd6 {[%clk 0:00:08.9]} 32... fxe5 {[%clk 0:01:38]} 33. Nxb5
{[%clk 0:00:08.3]} 33... exf4 {[%clk 0:01:36.9]} 34. gxf4 {[%clk 0:00:06.4]}
34... Rf7 {[%clk 0:01:34.7]} 35. Kg2 {[%clk 0:00:05.6]} 35... Nxf4+ {[%clk
0:01:33.9]} 36. Kg3 {[%clk 0:00:06.2]} 36... Ng6 {[%clk 0:01:21.2]} 37. Re4
{[%clk 0:00:06.6]} 37... Be5+ {[%clk 0:01:08.4]} 38. Rxe5 {[%clk 0:00:06.8]}
38... Rxd1 {[%clk 0:01:08.3]} 39. Re8+ {[%clk 0:00:07.7]} 39... Nf8 {[%clk
0:01:08.6]} 40. Nc7 {[%clk 0:00:06.1]} 40... Rg1+ {[%clk 0:01:06.4]} 41. Kh2
{[%clk 0:00:04.7]} 41... Rgf1 {[%clk 0:00:59.3]} 42. Ne6 {[%clk 0:00:04.6]}
42... R1f6 {[%clk 0:00:58]} 43. Bxf8 {[%clk 0:00:03.8]} 43... Rxf8 {[%clk
0:00:55.9]} 44. Nxf8 {[%clk 0:00:03]} 44... Rxf8 {[%clk 0:00:56.1]} 45. Re7
{[%clk 0:00:03.9]} 45... Rf7 {[%clk 0:00:56.6]} 46. Re8+ {[%clk 0:00:04.1]}
46... Kg7 {[%clk 0:00:56.6]} 47. Rc8 {[%clk 0:00:04.9]} 47... h5 {[%clk
0:00:53.2]} 48. Rxc5 {[%clk 0:00:04.9]} 48... Kg6 {[%clk 0:00:53.8]} 49. Rc6+
{[%clk 0:00:04.8]} 49... Kg5 {[%clk 0:00:53.8]} 50. Rc5+ {[%clk 0:00:03.8]}
50... Kh4 {[%clk 0:00:53.6]} 51. Rc6 {[%clk 0:00:03.7]} 51... Rf2+ {[%clk
0:00:53.4]} 52. Kg1 {[%clk 0:00:03.7]} 52... Rxb2 {[%clk 0:00:54.3]} 53. Ra6
{[%clk 0:00:04.1]} 53... Kg3 {[%clk 0:00:54.1]} 54. Kf1 {[%clk 0:00:03.8]} 54...
h4 {[%clk 0:00:54.3]} 55. Ra3+ {[%clk 0:00:02.8]} 55... Kh2 {[%clk 0:00:52.6]}
56. Ra4 {[%clk 0:00:03.7]} 56... Kh3 {[%clk 0:00:51.8]} 57. Ra3+ {[%clk
0:00:03.7]} 57... g3 {[%clk 0:00:52.3]} 58. Rxa7 {[%clk 0:00:03.9]} 58... g2+
{[%clk 0:00:52.2]} 0-1

[Event "*** Titled Tuesday Blitz"]
[Site "Chess.com"]
[Date "2020.11.10"]
[Round "9"]
[White "frederiksvane"]
[Black "GukeshDommaraju"]
[Result "0-1"]
[WhiteElo "2705"]
[BlackElo "2872"]
[TimeControl "180+1"]
[EndTime "11:52:31 PST"]
[Termination "GukeshDommaraju won by resignation"]

1. e4 {[%clk 0:03:00.9]} 1... c6 {[%clk 0:03:00]} 2. d4 {[%clk 0:03:00]} 2... d5
{[%clk 0:03:00.4]} 3. exd5 {[%clk 0:03:00.9]} 3... cxd5 {[%clk 0:03:00.6]} 4.
Bd3 {[%clk 0:03:01.4]} 4... Nf6 {[%clk 0:03:00.9]} 5. c3 {[%clk 0:03:00.6]} 5...
Bg4 {[%clk 0:03:00.6]} 6. Qb3 {[%clk 0:03:00.4]} 6... Qc7 {[%clk 0:03:00.9]} 7.
h3 {[%clk 0:02:57.9]} 7... Bd7 {[%clk 0:03:00]} 8. Nf3 {[%clk 0:02:58.1]} 8...
Bc6 {[%clk 0:02:59.6]} 9. O-O {[%clk 0:02:56.9]} 9... e6 {[%clk 0:02:55.5]} 10.
Ne5 {[%clk 0:02:55.9]} 10... Nbd7 {[%clk 0:02:55]} 11. Bf4 {[%clk 0:02:53.8]}
11... Bd6 {[%clk 0:02:53.6]} 12. Re1 {[%clk 0:02:53.1]} 12... Ne4 {[%clk
0:02:33.1]} 13. Bxe4 {[%clk 0:02:15.2]} 13... dxe4 {[%clk 0:02:31.7]} 14. Nxc6
{[%clk 0:02:15.5]} 14... Bxf4 {[%clk 0:02:21.2]} 15. Nb4 {[%clk 0:02:14.3]}
15... a5 {[%clk 0:01:46.2]} 16. Nc2 {[%clk 0:02:07.6]} 16... a4 {[%clk 0:01:45]}
17. Qb4 {[%clk 0:01:49.6]} 17... Bd6 {[%clk 0:01:33.6]} 18. Qb5 {[%clk
0:01:48.7]} 18... Ra5 {[%clk 0:01:33.6]} 19. Qe2 {[%clk 0:01:48.5]} 19... f5
{[%clk 0:01:31.5]} 20. Nba3 {[%clk 0:01:48.1]} 20... O-O {[%clk 0:01:28.1]} 21.
Nc4 {[%clk 0:01:35.6]} 21... Ra6 {[%clk 0:01:26.9]} 22. Nxd6 {[%clk 0:01:30]}
22... Qxd6 {[%clk 0:01:24.5]} 23. Na3 {[%clk 0:01:26.6]} 23... Rc8 {[%clk
0:01:17.4]} 24. Rac1 {[%clk 0:01:20.5]} 24... Qd5 {[%clk 0:01:11.2]} 25. c4
{[%clk 0:01:18.1]} 25... Qc6 {[%clk 0:00:39.7]} 26. Red1 {[%clk 0:01:18]} 26...
Nf6 {[%clk 0:00:38]} 27. Nb5 {[%clk 0:01:17.1]} 27... Qd7 {[%clk 0:00:37.1]} 28.
Qe3 {[%clk 0:01:11.3]} 28... h6 {[%clk 0:00:36.1]} 29. Qf4 {[%clk 0:01:07.3]}
29... Rb6 {[%clk 0:00:27.6]} 30. Qe5 {[%clk 0:00:57.4]} 30... Ne8 {[%clk
0:00:27.4]} 31. d5 {[%clk 0:00:54.5]} 31... Qf7 {[%clk 0:00:19.2]} 32. d6 {[%clk
0:00:50.9]} 32... Qd7 {[%clk 0:00:19.3]} 33. Rc3 {[%clk 0:00:17.9]} 33... Nf6
{[%clk 0:00:18.4]} 34. Rd2 {[%clk 0:00:11.2]} 34... Kh7 {[%clk 0:00:18.1]} 35.
Na3 {[%clk 0:00:10.9]} 35... Rbc6 {[%clk 0:00:18.1]} 36. c5 {[%clk 0:00:11.2]}
36... Nd5 {[%clk 0:00:16]} 37. Rxd5 {[%clk 0:00:11.8]} 37... exd5 {[%clk
0:00:15.8]} 38. Qxd5 {[%clk 0:00:12.7]} 38... b6 {[%clk 0:00:15.7]} 39. cxb6
{[%clk 0:00:09.5]} 39... Rxd6 {[%clk 0:00:16.1]} 40. b7 {[%clk 0:00:06.8]} 40...
Rxc3 {[%clk 0:00:11.8]} 41. bxc3 {[%clk 0:00:04.5]} 41... Rxd5 {[%clk
0:00:11.7]} 42. b8=Q {[%clk 0:00:05]} 42... Rd1+ {[%clk 0:00:11.9]} 43. Kh2
{[%clk 0:00:05.6]} 43... Qd6+ {[%clk 0:00:12.6]} 44. Qxd6 {[%clk 0:00:05.8]}
44... Rxd6 {[%clk 0:00:13.5]} 45. Nb5 {[%clk 0:00:05.6]} 45... Rd2 {[%clk
0:00:13.1]} 46. a3 {[%clk 0:00:05.8]} 46... Rxf2 {[%clk 0:00:13.2]} 0-1

[Event "*** Titled Tuesday Blitz"]
[Site "Chess.com"]
[Date "2020.11.10"]
[Round "9"]
[White "Supernotar"]
[Black "ftorodent"]
[Result "1-0"]
[WhiteElo "2860"]
[BlackElo "2704"]
[TimeControl "180+1"]
[EndTime "11:52:31 PST"]
[Termination "Supernotar won by checkmate"]

1. d4 {[%clk 0:03:00.9]} 1... d5 {[%clk 0:02:59.4]} 2. c4 {[%clk 0:02:58.5]}
2... e6 {[%clk 0:02:59.5]} 3. Nf3 {[%clk 0:02:57.9]} 3... Nf6 {[%clk 0:02:57.9]}
4. e3 {[%clk 0:02:58]} 4... Be7 {[%clk 0:02:55.3]} 5. Nbd2 {[%clk 0:02:57.7]}
5... O-O {[%clk 0:02:55.1]} 6. Bd3 {[%clk 0:02:57.7]} 6... b6 {[%clk 0:02:54.3]}
7. O-O {[%clk 0:02:57.3]} 7... Bb7 {[%clk 0:02:54.4]} 8. b3 {[%clk 0:02:57.1]}
8... c5 {[%clk 0:02:51.7]} 9. Bb2 {[%clk 0:02:57.1]} 9... Nc6 {[%clk 0:02:51.5]}
10. Rc1 {[%clk 0:02:51.8]} 10... Rc8 {[%clk 0:02:50.6]} 11. Qe2 {[%clk
0:02:49.4]} 11... Bd6 {[%clk 0:02:40.9]} 12. Ne5 {[%clk 0:02:45.5]} 12... Bxe5
{[%clk 0:02:22.5]} 13. dxe5 {[%clk 0:02:45.2]} 13... Nd7 {[%clk 0:02:23.1]} 14.
f4 {[%clk 0:02:42.5]} 14... f5 {[%clk 0:02:15.6]} 15. exf6 {[%clk 0:02:36.4]}
15... Nxf6 {[%clk 0:02:14.9]} 16. Kh1 {[%clk 0:02:27.4]} 16... Qe7 {[%clk
0:02:07.8]} 17. e4 {[%clk 0:02:22.2]} 17... Rce8 {[%clk 0:01:59.9]} 18. e5
{[%clk 0:02:19]} 18... Nd7 {[%clk 0:01:58.6]} 19. cxd5 {[%clk 0:02:15.6]} 19...
exd5 {[%clk 0:01:58.2]} 20. Rce1 {[%clk 0:02:11.5]} 20... Nb4 {[%clk 0:01:51.6]}
21. Bb5 {[%clk 0:01:54.3]} 21... Bc6 {[%clk 0:01:21.2]} 22. Bxc6 {[%clk
0:01:49.8]} 22... Nxc6 {[%clk 0:01:21]} 23. e6 {[%clk 0:01:37.4]} 23... d4
{[%clk 0:01:06.1]} 24. Qf3 {[%clk 0:01:33.2]} 24... Ndb8 {[%clk 0:01:05.7]} 25.
f5 {[%clk 0:01:31.4]} 25... Nb4 {[%clk 0:00:58.1]} 26. a3 {[%clk 0:01:26.5]}
26... Nc2 {[%clk 0:00:57.2]} 27. Re4 {[%clk 0:01:23.1]} 27... Qg5 {[%clk
0:00:54.4]} 28. Nc4 {[%clk 0:01:18.2]} 28... b5 {[%clk 0:00:24.6]} 29. Ne5
{[%clk 0:01:13.2]} 29... Rxe6 {[%clk 0:00:19.4]} 30. fxe6 {[%clk 0:01:03.7]}
30... Rxf3 {[%clk 0:00:19.3]} 31. Nxf3 {[%clk 0:00:58.8]} 31... Qe7 {[%clk
0:00:17.7]} 32. Bc1 {[%clk 0:00:51.9]} 32... h6 {[%clk 0:00:12.8]} 33. Nh4
{[%clk 0:00:48.7]} 33... Nc6 {[%clk 0:00:07.9]} 34. Ng6 {[%clk 0:00:45.2]} 34...
Qe8 {[%clk 0:00:06.8]} 35. e7 {[%clk 0:00:39.5]} 35... Nxe7 {[%clk 0:00:05]} 36.
Nxe7+ {[%clk 0:00:36.5]} 36... Kh7 {[%clk 0:00:05.3]} 37. Re6 {[%clk 0:00:31.1]}
37... d3 {[%clk 0:00:04.9]} 38. Ng6 {[%clk 0:00:25.4]} 38... Qc8 {[%clk
0:00:03.2]} 39. Rd6 {[%clk 0:00:14.8]} 39... Qg4 {[%clk 0:00:02.4]} 40. Nf8+
{[%clk 0:00:11.1]} 40... Kg8 {[%clk 0:00:02.6]} 41. Ng6 {[%clk 0:00:08.2]} 41...
Qe2 {[%clk 0:00:01.4]} 42. Rf8+ {[%clk 0:00:05.4]} 42... Kh7 {[%clk 0:00:01.6]}
43. Rh8# {[%clk 0:00:06.3]} 1-0